fUST/lending_fUST_20240730
["ID","MTS","AMOUNT","RATE_DAILY","PERIOD"]
[333655439,1722310240818,-500.0,0.00013698,2]
[333655440,1722310240827,-500.0,0.00013698,2]
[333655441,1722310240837,-500.0,0.00013698,2]
[333655442,1722310240846,-271.15644535,0.00013698,2]
[333655443,1722310240856,-500.0,0.00013698,2]
[333655444,1722310240867,-500.0,0.00013698,2]
[333655445,1722310240877,-500.0,0.00013698,2]
[333655446,1722310240886,-500.0,0.00013698,2]
[333655447,1722310240896,-500.0,0.00013698,2]
[333655448,1722310240905,-532.32558806,0.00013698,2]
[333655449,1722310240916,-500.0,0.00013698,2]
[333655450,1722310240928,-500.0,0.00013698,2]
[333655451,1722310240938,-500.0,0.00013698,2]
[333655452,1722310240947,-500.0,0.00013698,2]
[333655453,1722310240956,-500.0,0.00013698,2]
[333655454,1722310240966,-500.0,0.00013698,2]
[333655455,1722310240975,-504.87496001,0.00013698,2]
[333655456,1722310240985,-598.64660512,0.00013698,2]
[333655457,1722310240995,-509.14979183,0.00013698,2]
[333655458,1722310241005,-205.23119674,0.00013698,2]
[333655459,1722310241015,-500.0,0.00013698,2]
[333655460,1722310241024,-500.0,0.00013698,2]
[333655461,1722310241033,-500.0,0.00013698,2]
[333655462,1722310241042,-500.0,0.00013698,2]
[333655463,1722310241051,-520.87355681,0.00013698,2]
[333655464,1722310241061,-500.0,0.00013698,2]
[333655465,1722310241070,-303.38219212,0.00013698,2]
[333655466,1722310241079,-500.0,0.00013698,2]
[333655467,1722310241089,-500.0,0.00013698,2]
[333655468,1722310241098,-500.0,0.00013698,2]
[333655469,1722310241108,-501.21475447,0.00013698,2]
[333655470,1722310241117,-505.68171457,0.00013698,2]
[333655471,1722310241127,-500.0,0.00013698,2]
[333655472,1722310241136,-500.0,0.00013698,2]
[333655473,1722310241145,-500.0,0.00013698,2]
[333655474,1722310241155,-500.0,0.00013698,2]
[333655475,1722310241164,-500.0,0.00013698,2]
[333655476,1722310241174,-500.0,0.00013698,2]
[333655477,1722310241184,-500.0,0.00013698,2]
[333655478,1722310241193,-500.0,0.00013698,2]
[333655479,1722310241203,-500.0,0.00013698,2]
[333655480,1722310241212,-504.29558089,0.00013698,2]
[333655481,1722310241221,-501.58451538,0.00013698,2]
[333655482,1722310241231,-500.0,0.00013698,2]
[333655483,1722310241241,-504.64758491,0.00013698,2]
[333655484,1722310241251,-562.54424283,0.00013698,2]
[333655485,1722310241261,-500.0,0.00013698,2]
[333655486,1722310241270,-516.91608745,0.00013698,2]
[333655487,1722310241280,-509.3132036,0.00013698,2]
[333655488,1722310241289,-420.0,0.00013698,2]
[333655489,1722310241299,-503.03591332,0.00013698,2]
[333655490,1722310241308,-500.76146546,0.00013698,2]
[333655491,1722310241317,-200.48393973,0.00013698,2]
[333655492,1722310241327,-503.95429218,0.00013698,2]
[333655493,1722310241336,-500.0,0.00013698,2]
[333655494,1722310241345,-501.55526477,0.00013698,2]
[333655495,1722310241355,-503.77424064,0.00013698,2]
[333655496,1722310241364,-506.48484157,0.00013698,2]
[333655497,1722310241374,-160.39870306,0.00013698,2]
[333655498,1722310241383,-514.48422689,0.00013698,2]
[333655499,1722310241393,-500.0,0.00013698,2]
[333655500,1722310241403,-500.0,0.00013698,2]
[333655501,1722310241412,-527.97086391,0.00013698,2]
[333655502,1722310241423,-508.49152173,0.00013698,2]
[333655503,1722310241434,-505.11964383,0.00013698,2]
[333655504,1722310241446,-500.0,0.00013698,2]
[333655505,1722310241456,-500.0,0.00013698,2]
[333655506,1722310241466,-503.05178327,0.00013698,2]
[333655507,1722310241476,-500.0,0.00013698,2]
[333655508,1722310241487,-502.38779338,0.00013698,2]
[333655509,1722310241498,-500.0,0.00013698,2]
[333655510,1722310241507,-500.0,0.00013698,2]
[333655511,1722310241584,-500.0,0.00013698,2]
[333655512,1722310241594,-500.0,0.00013698,2]
[333655513,1722310241603,-500.0,0.00013698,2]
[333655514,1722310241613,-500.0,0.00013698,2]
[333655515,1722310241622,-500.0,0.00013698,2]
[333655516,1722310241631,-504.31399478,0.00013698,2]
[333655517,1722310241641,-500.0,0.00013698,2]
[333655518,1722310241650,-500.0,0.00013698,2]
[333655519,1722310241663,-500.0,0.00013698,2]
[333655520,1722310241677,-177.71118674,0.00013698,2]
[333655521,1722310241686,-500.0,0.00013698,2]
[333655522,1722310241696,-500.0,0.00013698,2]
[333655523,1722310241706,-519.43355999,0.00013698,2]
[333655524,1722310241716,-603.04,0.00013698,2]
[333655525,1722310241725,-505.63417211,0.00013698,2]
[333655526,1722310241735,-646.16176269,0.00013698,2]
[333655527,1722310241749,-500.0,0.00013698,2]
[333655528,1722310241760,-503.95680926,0.00013698,2]
[333655529,1722310241770,-500.97672782,0.00013698,2]
[333655530,1722310241779,-500.0,0.00013698,2]
[333655531,1722310241788,-505.28498231,0.00013698,2]
[333655532,1722310241798,-505.66609461,0.00013698,2]
[333655533,1722310241807,-500.0,0.00013698,2]
[333655534,1722310241817,-500.0,0.00013698,2]
[333655535,1722310241826,-500.0,0.00013698,2]
[333655536,1722310241836,-505.39311625,0.00013698,2]
[333655537,1722310241845,-500.0,0.00013698,2]
[333655538,1722310241855,-500.0,0.00013698,2]
[333655539,1722310241865,-500.0,0.00013698,2]
[333655540,1722310241874,-500.0,0.00013698,2]
[333655541,1722310241883,-500.0,0.00013698,2]
[333655542,1722310241893,-505.81043157,0.00013698,2]
[333655543,1722310241902,-500.0,0.00013698,2]
[333655544,1722310241912,-500.0,0.00013698,2]
[333655545,1722310241924,-500.0,0.00013698,2]
[333655546,1722310241934,-503.64487522,0.00013698,2]
[333655547,1722310241944,-501.95365694,0.00013698,2]
[333655548,1722310241953,-500.0,0.00013698,2]
[333655549,1722310241964,-500.0,0.00013698,2]
[333655550,1722310241973,-500.0,0.00013698,2]
[333655551,1722310241983,-496.19421376,0.00013698,2]
[333655552,1722310242008,-13.28093285,0.00013698,2]
[333655553,1722310242018,-556.06574218,0.00013698,2]
[333655554,1722310242027,-189.4869976,0.00013698,2]
[333655555,1722310242037,-500.0,0.00013698,2]
[333655556,1722310242047,-500.0,0.00013698,2]
[333655557,1722310242056,-500.0,0.00013698,2]
[333655558,1722310242066,-500.0,0.00013698,2]
[333655559,1722310242076,-500.0,0.00013698,2]
[333655560,1722310242086,-134.41482017,0.00013698,2]
[333655561,1722310242097,-366.15035088,0.00013698,2]
[333655562,1722310242107,-46.65257113,0.00013698,2]
[333655563,1722310242118,-453.34742887,0.00013698,2]
[333655564,1722310242128,-500.0,0.00013698,2]
[333655565,1722310242140,-500.0,0.00013698,2]
[333655566,1722310242151,-500.0,0.00013698,2]
[333655567,1722310242163,-504.05235574,0.00013698,2]
[333655568,1722310242176,-500.0,0.00013698,2]
[333655569,1722310242185,-506.81711907,0.00013698,2]
[333655570,1722310242195,-500.0,0.00013698,2]
[333655571,1722310242206,-500.0,0.00013698,2]
[333655572,1722310242215,-505.98014279,0.00013698,2]
[333655573,1722310242224,-249.91724229,0.00013698,2]
[333655601,1722310243537,-40.29852058,0.00013698,2]
[333655733,1722310390097,606.5508319,0.00027,120]
[333655753,1722311386077,-509.28215862,9.999e-05,2]
[333655754,1722311386107,-150.9668624,0.0001,2]
[333655755,1722311386132,-164.82499563,0.0001,2]
[333655756,1722311386158,-164.46025856,0.0001,2]
[333655757,1722311386184,-200.0,0.0001,2]
[333655758,1722311386208,-200.0,0.0001,2]
[333655759,1722311386235,-446.99,0.00010959,2]
[333655760,1722311386260,-393.72470725,0.0001137,2]
[333655761,1722311386284,-400.0,0.0001137,2]
[333655762,1722311386308,-188.571769,0.00011704,2]
[333655763,1722311386333,-300.0,0.00011784,2]
[333655764,1722311386359,-264.0,0.00011784,2]
[333655765,1722311386384,-6617.17924854,0.00011915,2]
[333655788,1722311432301,-200.0,0.0001,2]
[333655790,1722311432311,-400.0,0.0001137,2]
[333655792,1722311432324,-300.0,0.00011914,2]
[333655794,1722311432336,-216.62952035,0.00011915,2]
[333655984,1722311438725,-18066.19123111,0.00011915,2]
[333655986,1722311438735,-188.571769,0.00012314,2]
[333655988,1722311438745,-190.217204,0.00012986,2]
[333655990,1722311438755,-316.0,0.00013106,2]
[333655992,1722311438764,-600.0,0.00013147,2]
[333655994,1722311438774,-1074.47222259,0.00013413,2]
[333655996,1722311438784,-5308.80312147,0.00013425,2]
[333655998,1722311438794,-1410.0,0.00013439,2]
[333656000,1722311438804,-500.0,0.00013588,2]
[333656003,1722311438814,-5744.8565256,0.00013598,2]
[333656005,1722311438826,-1037.56045286,0.00013598,2]
[333656007,1722311438836,-150.112233,0.000136,2]
[333656009,1722311438846,-413.5692849,0.00013609,2]
[333656011,1722311438856,-413.4416684,0.00013609,2]
[333656013,1722311438865,-12329.40274558,0.00013678,2]
[333656181,1722311440682,-4140.06892891,0.00011915,2]
[333656183,1722311440691,-85860.01081982,0.00013678,2]
[333656186,1722311440717,-6575.6166366,0.00013678,2]
[333656188,1722311440727,-16518.55088873,0.00013688,2]
[333656258,1722311443524,-190.4105277,0.00011915,2]
[333656260,1722311443533,-1687.14284841,0.00013688,2]
[333656567,1722311446522,-7985.56381336,0.00013688,2]
[333656568,1722311446531,-104765.030202,0.00013688,2]
[333656569,1722311446541,-9662.50815924,0.00013698,5]
[333656570,1722311446550,-9395.41083155,0.00013698,5]
[333656571,1722311446559,-290.52613375,0.00013698,2]
[333656572,1722311446569,-500.0,0.00013698,2]
[333656573,1722311446578,-509.88373856,0.00013698,2]
[333656574,1722311446587,-500.0,0.00013698,2]
[333656575,1722311446596,-500.0,0.00013698,2]
[333656576,1722311446606,-500.0,0.00013698,2]
[333656577,1722311446615,-500.0,0.00013698,2]
[333656578,1722311446625,-500.0,0.00013698,2]
[333656579,1722311446634,-500.0,0.00013698,2]
[333656580,1722311446644,-500.0,0.00013698,2]
[333656581,1722311446653,-500.0,0.00013698,2]
[333656582,1722311446662,-513.08801593,0.00013698,2]
[333656584,1722311446671,-425.33489213,0.00013698,2]
[333656586,1722311446681,-500.0,0.00013698,2]
[333656588,1722311446691,-506.56112281,0.00013698,2]
[333656590,1722311446700,-500.0,0.00013698,2]
[333656592,1722311446710,-508.08071063,0.00013698,2]
[333656594,1722311446719,-505.63319307,0.00013698,2]
[333656596,1722311446729,-500.0,0.00013698,2]
[333656598,1722311446738,-500.0,0.00013698,2]
[333656600,1722311446748,-500.0,0.00013698,2]
[333656602,1722311446759,-500.0,0.00013698,2]
[333656604,1722311446770,-500.0,0.00013698,2]
[333656606,1722311446779,-500.0,0.00013698,2]
[333656608,1722311446789,-500.0,0.00013698,2]
[333656610,1722311446801,-526.05571691,0.00013698,2]
[333656612,1722311446811,-502.03117762,0.00013698,2]
[333656614,1722311446821,-505.43228814,0.00013698,2]
[333656616,1722311446831,-556.49228404,0.00013698,2]
[333656618,1722311446841,-500.0,0.00013698,2]
[333656620,1722311446850,-224.76759444,0.00013698,2]
[333656622,1722311446859,-500.0,0.00013698,2]
[333656624,1722311446869,-500.0,0.00013698,2]
[333656626,1722311446879,-500.0,0.00013698,2]
[333656628,1722311446889,-502.9617679,0.00013698,2]
[333656630,1722311446899,-510.94776825,0.00013698,2]
[333656632,1722311446909,-500.0,0.00013698,2]
[333656634,1722311446920,-500.0,0.00013698,2]
[333656636,1722311446929,-508.55530421,0.00013698,2]
[333656638,1722311446940,-503.31855622,0.00013698,2]
[333656640,1722311446950,-500.74138533,0.00013698,2]
[333656642,1722311446960,-519.10922977,0.00013698,2]
[333656644,1722311446970,-503.64222284,0.00013698,2]
[333656646,1722311446980,-500.0,0.00013698,2]
[333656648,1722311446990,-501.36085447,0.00013698,2]
[333656650,1722311446999,-500.00000001,0.00013698,2]
[333656653,1722311447009,-501.78062734,0.00013698,2]
[333656654,1722311447018,-500.0,0.00013698,2]
[333656657,1722311447032,-504.58950529,0.00013698,2]
[333656659,1722311447042,-500.0,0.00013698,2]
[333656661,1722311447051,-510.13764201,0.00013698,2]
[333656663,1722311447063,-500.0,0.00013698,2]
[333656665,1722311447074,-500.0,0.00013698,2]
[333656667,1722311447084,-580.22578755,0.00013698,2]
[333656669,1722311447094,-503.5759984,0.00013698,2]
[333656671,1722311447105,-506.14446225,0.00013698,2]
[333656673,1722311447115,-517.99077456,0.00013698,2]
[333656675,1722311447125,-500.0,0.00013698,2]
[333656677,1722311447135,-500.0,0.00013698,2]
[333656679,1722311447144,-500.0,0.00013698,2]
[333656681,1722311447154,-506.02700419,0.00013698,2]
[333656683,1722311447164,-507.45958268,0.00013698,2]
[333656685,1722311447174,-503.8822071,0.00013698,2]
[333656687,1722311447185,-500.0,0.00013698,2]
[333656689,1722311447197,-524.8991194,0.00013698,2]
[333656691,1722311447207,-505.91219594,0.00013698,2]
[333656693,1722311447219,-500.0,0.00013698,2]
[333656695,1722311447229,-500.0,0.00013698,2]
[333656697,1722311447239,-500.0,0.00013698,2]
[333656699,1722311447248,-500.0,0.00013698,2]
[333656702,1722311447260,-500.0,0.00013698,2]
[333656704,1722311447270,-508.5222198,0.00013698,2]
[333656706,1722311447281,-500.0,0.00013698,2]
[333656708,1722311447291,-494.23684356,0.00013698,2]
[333656710,1722311447301,-500.0,0.00013698,2]
[333656712,1722311447311,-500.0,0.00013698,2]
[333656714,1722311447320,-500.0,0.00013698,2]
[333656716,1722311447332,-507.45556321,0.00013698,2]
[333656718,1722311447343,-503.81627184,0.00013698,2]
[333656720,1722311447353,-500.0,0.00013698,2]
[333656723,1722311447365,-500.0,0.00013698,2]
[333656725,1722311447374,-500.0,0.00013698,2]
[333656727,1722311447383,-503.78851115,0.00013698,2]
[333656729,1722311447394,-503.76233359,0.00013698,2]
[333656731,1722311447403,-500.0,0.00013698,2]
[333656733,1722311447413,-500.0,0.00013698,2]
[333656735,1722311447423,-317.88805576,0.00013698,2]
[333656737,1722311447433,-500.0,0.00013698,2]
[333656739,1722311447446,-500.0,0.00013698,2]
[333656741,1722311447461,-500.0,0.00013698,2]
[333656743,1722311447470,-500.0,0.00013698,2]
[333656745,1722311447481,-500.0,0.00013698,2]
[333656747,1722311447490,-504.98524655,0.00013698,2]
[333656749,1722311447499,-500.0,0.00013698,2]
[333656751,1722311447508,-512.32510499,0.00013698,2]
[333656753,1722311447518,-500.0,0.00013698,2]
[333656755,1722311447527,-500.0,0.00013698,2]
[333656757,1722311447536,-500.0,0.00013698,2]
[333656767,1722311447624,-500.0,0.00013698,2]
[333656769,1722311447634,-500.0,0.00013698,2]
[333656771,1722311447644,-502.74610859,0.00013698,2]
[333656773,1722311447654,-500.0,0.00013698,2]
[333656775,1722311447664,-500.0,0.00013698,2]
[333656777,1722311447674,-400.0,0.00013698,2]
[333656779,1722311447683,-502.06327991,0.00013698,2]
[333656781,1722311447694,-518.18518593,0.00013698,2]
[333656783,1722311447703,-500.0,0.00013698,2]
[333656785,1722311447712,-500.0,0.00013698,2]
[333656787,1722311447722,-501.61045526,0.00013698,2]
[333656789,1722311447731,-500.77446945,0.00013698,2]
[333656791,1722311447741,-500.0,0.00013698,2]
[333656793,1722311447753,-500.0,0.00013698,2]
[333656795,1722311447762,-500.0,0.00013698,2]
[333656797,1722311447773,-500.0,0.00013698,2]
[333656799,1722311447783,-250.0,0.00013698,2]
[333656801,1722311447792,-500.0,0.00013698,2]
[333656803,1722311447802,-504.4193737,0.00013698,2]
[333656805,1722311447811,-500.0,0.00013698,2]
[333656807,1722311447822,-503.46235513,0.00013698,2]
[333656809,1722311447831,-508.71274814,0.00013698,2]
[333656811,1722311447840,-505.06426174,0.00013698,2]
[333656813,1722311447850,-506.86860152,0.00013698,2]
[333656815,1722311447860,-500.0,0.00013698,2]
[333656817,1722311447870,-500.0,0.00013698,2]
[333656819,1722311447879,-500.0,0.00013698,2]
[333656821,1722311447889,-500.0,0.00013698,2]
[333656823,1722311447898,-500.0,0.00013698,2]
[333656825,1722311447908,-500.0,0.00013698,2]
[333656827,1722311447917,-166.04,0.00013698,2]
[333656829,1722311447927,-500.84098608,0.00013698,2]
[333656830,1722311447938,-500.0,0.00013698,2]
[333656831,1722311447949,-500.0,0.00013698,2]
[333656832,1722311447958,-500.0,0.00013698,2]
[333656833,1722311447967,-501.45898937,0.00013698,2]
[333656834,1722311447977,-529.66410549,0.00013698,2]
[333656836,1722311447987,-504.12180533,0.00013698,2]
[333656837,1722311447997,-500.0,0.00013698,2]
[333656838,1722311448006,-510.14653365,0.00013698,2]
[333656839,1722311448016,-500.0,0.00013698,2]
[333656840,1722311448028,-500.0,0.00013698,2]
[333656841,1722311448040,-217.85091696,0.00013698,2]
[333656842,1722311448050,-500.0,0.00013698,2]
[333656843,1722311448060,-500.0,0.00013698,2]
[333656844,1722311448070,-500.0,0.00013698,2]
[333656845,1722311448080,-500.0,0.00013698,2]
[333656846,1722311448090,-500.0,0.00013698,2]
[333656847,1722311448099,-500.0,0.00013698,2]
[333656849,1722311448112,-500.0,0.00013698,2]
[333656851,1722311448124,-500.0,0.00013698,2]
[333656853,1722311448133,-500.0,0.00013698,2]
[333656855,1722311448144,-503.34603234,0.00013698,2]
[333656857,1722311448154,-607.64,0.00013698,2]
[333656859,1722311448164,-500.0,0.00013698,2]
[333656861,1722311448174,-412.47734143,0.00013698,2]
[333656863,1722311448184,-333.23041344,0.00013698,2]
[333656865,1722311448195,-502.45741219,0.00013698,2]
[333656866,1722311448205,-500.0,0.00013698,2]
[333656867,1722311448215,-500.0,0.00013698,2]
[333656868,1722311448225,-500.0,0.00013698,2]
[333656869,1722311448235,-500.0,0.00013698,2]
[333656870,1722311448245,-500.0,0.00013698,2]
[333656871,1722311448256,-500.73609853,0.00013698,2]
[333656872,1722311448266,-500.0,0.00013698,2]
[333656873,1722311448275,-500.0,0.00013698,2]
[333656874,1722311448285,-524.31493505,0.00013698,2]
[333656875,1722311448294,-500.0,0.00013698,2]
[333656876,1722311448303,-500.0,0.00013698,2]
[333656877,1722311448313,-500.0,0.00013698,2]
[333656878,1722311448322,-508.77799074,0.00013698,2]
[333656879,1722311448332,-500.0,0.00013698,2]
[333656880,1722311448342,-500.0,0.00013698,2]
[333656881,1722311448352,-504.60538043,0.00013698,2]
[333656882,1722311448362,-635.94056987,0.00013698,2]
[333656883,1722311448371,-500.0,0.00013698,2]
[333656884,1722311448380,-500.0,0.00013698,2]
[333656885,1722311448390,-500.0,0.00013698,2]
[333656886,1722311448399,-500.0,0.00013698,2]
[333656887,1722311448409,-500.0,0.00013698,2]
[333656888,1722311448418,-500.0,0.00013698,2]
[333656889,1722311448429,-500.0,0.00013698,2]
[333656890,1722311448440,-500.0,0.00013698,2]
[333656891,1722311448450,-506.37771507,0.00013698,2]
[333656892,1722311448460,-508.43706222,0.00013698,2]
[333656893,1722311448469,-500.0,0.00013698,2]
[333656894,1722311448478,-511.06671628,0.00013698,2]
[333656895,1722311448488,-500.0,0.00013698,2]
[333656896,1722311448498,-500.0,0.00013698,2]
[333656897,1722311448509,-500.0,0.00013698,2]
[333656898,1722311448519,-500.0,0.00013698,2]
[333656899,1722311448528,-504.638812,0.00013698,2]
[333656900,1722311448538,-500.0,0.00013698,2]
[333656901,1722311448547,-500.0,0.00013698,2]
[333656902,1722311448557,-500.0,0.00013698,2]
[333656903,1722311448567,-500.91882021,0.00013698,2]
[333656904,1722311448576,-500.0,0.00013698,2]
[333656905,1722311448586,-500.0,0.00013698,2]
[333656906,1722311448596,-500.0,0.00013698,2]
[333656907,1722311448605,-500.0,0.00013698,2]
[333656908,1722311448615,-500.0,0.00013698,2]
[333656909,1722311448625,-500.0,0.00013698,2]
[333656910,1722311448635,-500.0,0.00013698,2]
[333656911,1722311448645,-502.93084723,0.00013698,2]
[333656912,1722311448655,-512.12590985,0.00013698,2]
[333656913,1722311448664,-504.72185137,0.00013698,2]
[333656914,1722311448673,-331.95171431,0.00013698,2]
[333656915,1722311448683,-241.53469699,0.00013698,2]
[333656916,1722311448692,-504.10294579,0.00013698,2]
[333656917,1722311448702,-508.87223605,0.00013698,2]
[333656918,1722311448712,-500.0,0.00013698,2]
[333656919,1722311448723,-507.23921558,0.00013698,2]
[333656920,1722311448734,-500.0,0.00013698,2]
[333656921,1722311448744,-500.0,0.00013698,2]
[333656922,1722311448754,-500.0,0.00013698,2]
[333656923,1722311448763,-500.0,0.00013698,2]
[333656924,1722311448773,-240.0,0.00013698,2]
[333656925,1722311448783,-507.63716845,0.00013698,2]
[333656926,1722311448793,-500.0,0.00013698,2]
[333656927,1722311448802,-500.0,0.00013698,2]
[333656928,1722311448812,-502.12713,0.00013698,2]
[333656929,1722311448821,-510.10394644,0.00013698,2]
[333656930,1722311448832,-503.36119486,0.00013698,2]
[333656931,1722311448843,-500.0,0.00013698,2]
[333656932,1722311448853,-500.0,0.00013698,2]
[333656933,1722311448863,-212.50977746,0.00013698,2]
[333656934,1722311448872,-506.27259331,0.00013698,2]
[333656935,1722311448882,-500.0,0.00013698,2]
[333656936,1722311448891,-508.84588911,0.00013698,2]
[333656937,1722311448901,-500.0,0.00013698,2]
[333656938,1722311448910,-500.0,0.00013698,2]
[333656939,1722311448920,-500.0,0.00013698,2]
[333656940,1722311448930,-506.74349433,0.00013698,2]
[333656941,1722311448939,-519.67738436,0.00013698,2]
[333656942,1722311448950,-500.0,0.00013698,2]
[333656943,1722311449029,-500.0,0.00013698,2]
[333656944,1722311449041,-500.0,0.00013698,2]
[333656945,1722311449051,-559.80875677,0.00013698,2]
[333656946,1722311449061,-276.87211263,0.00013698,2]
[333656947,1722311449071,-500.0,0.00013698,2]
[333656948,1722311449080,-634.81,0.00013698,2]
[333656949,1722311449090,-500.0,0.00013698,2]
[333656950,1722311449099,-568.97915997,0.00013698,2]
[333656951,1722311449110,-500.0,0.00013698,2]
[333656952,1722311449119,-500.0,0.00013698,2]
[333656953,1722311449129,-515.42801362,0.00013698,2]
[333656954,1722311449138,-501.20477974,0.00013698,2]
[333656955,1722311449147,-500.0,0.00013698,2]
[333656956,1722311449156,-505.03278455,0.00013698,2]
[333656957,1722311449165,-500.0,0.00013698,2]
[333656958,1722311449175,-159.72368943,0.00013698,2]
[333656959,1722311449185,-506.06958405,0.00013698,2]
[333656960,1722311449195,-512.00231568,0.00013698,2]
[333656961,1722311449205,-500.0,0.00013698,2]
[333656962,1722311449215,-509.939568,0.00013698,2]
[333656963,1722311449225,-513.81475098,0.00013698,2]
[333656964,1722311449235,-500.0,0.00013698,2]
[333656965,1722311449244,-500.0,0.00013698,2]
[333656966,1722311449253,-622.27,0.00013698,2]
[333656967,1722311449263,-500.0,0.00013698,2]
[333656968,1722311449272,-500.0,0.00013698,2]
[333656969,1722311449282,-500.0,0.00013698,2]
[333656970,1722311449291,-500.0,0.00013698,2]
[333656971,1722311449300,-500.0,0.00013698,2]
[333656972,1722311449310,-500.6228674,0.00013698,2]
[333656973,1722311449320,-500.0,0.00013698,2]
[333656974,1722311449329,-504.67025547,0.00013698,2]
[333656975,1722311449338,-500.0,0.00013698,2]
[333656976,1722311449348,-505.61938766,0.00013698,2]
[333656977,1722311449358,-500.0,0.00013698,2]
[333656978,1722311449367,-500.0,0.00013698,2]
[333656979,1722311449377,-500.0,0.00013698,2]
[333656980,1722311449386,-505.01305,0.00013698,2]
[333656981,1722311449396,-500.0,0.00013698,2]
[333656982,1722311449405,-500.0,0.00013698,2]
[333656983,1722311449415,-500.000001,0.00013698,2]
[333656984,1722311449425,-507.67981792,0.00013698,2]
[333656985,1722311449436,-500.0,0.00013698,2]
[333656986,1722311449447,-500.0,0.00013698,2]
[333656987,1722311449457,-500.0,0.00013698,2]
[333656988,1722311449466,-500.0,0.00013698,2]
[333656989,1722311449476,-607.04063705,0.00013698,2]
[333656990,1722311449486,-500.0,0.00013698,2]
[333656991,1722311449495,-500.0,0.00013698,2]
[333656992,1722311449505,-500.0,0.00013698,2]
[333656993,1722311449515,-519.41162688,0.00013698,2]
[333656994,1722311449525,-500.0,0.00013698,2]
[333656995,1722311449535,-502.33149967,0.00013698,2]
[333656996,1722311449545,-500.0,0.00013698,2]
[333656997,1722311449555,-500.0,0.00013698,2]
[333656998,1722311449565,-500.0,0.00013698,2]
[333656999,1722311449575,-501.8457317,0.00013698,2]
[333657000,1722311449585,-477.73013455,0.00013698,2]
[333657001,1722311449596,-512.79610687,0.00013698,2]
[333657002,1722311449605,-500.0,0.00013698,2]
[333657003,1722311449618,-481.1586668,0.00013698,2]
[333657004,1722311449629,-500.72023325,0.00013698,2]
[333657005,1722311449640,-500.0,0.00013698,2]
[333657006,1722311449651,-505.04467578,0.00013698,2]
[333657007,1722311449661,-500.0,0.00013698,2]
[333657008,1722311449671,-509.7775387,0.00013698,2]
[333657009,1722311449681,-500.0,0.00013698,2]
[333657010,1722311449691,-500.0,0.00013698,2]
[333657011,1722311449701,-500.0,0.00013698,2]
[333657012,1722311449711,-505.82901557,0.00013698,2]
[333657013,1722311449722,-500.0,0.00013698,2]
[333657014,1722311449733,-509.70921427,0.00013698,2]
[333657015,1722311449745,-500.0,0.00013698,2]
[333657016,1722311449755,-503.21261801,0.00013698,2]
[333657017,1722311449765,-500.0,0.00013698,2]
[333657018,1722311449775,-500.17721785,0.00013698,2]
[333657019,1722311449784,-500.0,0.00013698,2]
[333657020,1722311449793,-500.0,0.00013698,2]
[333657021,1722311449803,-501.95365694,0.00013698,2]
[333657022,1722311449813,-506.61264738,0.00013698,2]
[333657023,1722311449824,-503.09330057,0.00013698,2]
[333657024,1722311449834,-500.0,0.00013698,2]
[333657025,1722311449843,-505.79134157,0.00013698,2]
[333657026,1722311449855,-500.0,0.00013698,2]
[333657027,1722311449864,-506.61468855,0.00013698,2]
[333657028,1722311449875,-500.0,0.00013698,2]
[333657029,1722311449887,-501.21584657,0.00013698,2]
[333657030,1722311449897,-500.0,0.00013698,2]